fUST/lending_fUST_20251119
["ID","MTS","AMOUNT","RATE_DAILY","PERIOD"]
[394405663,1763535046571,-500.0,0.00041096,31]
[394405664,1763535046580,-500.0,0.00041096,31]
[394405665,1763535046590,-500.0,0.00041096,31]
[394405666,1763535046599,-500.0,0.00041096,31]
[394405667,1763535046608,-500.0,0.00041096,31]
[394405668,1763535046618,-500.0,0.00041096,31]
[394405669,1763535046627,-500.0,0.00041096,31]
[394405670,1763535046637,-500.0,0.00041096,31]
[394405671,1763535046646,-5000.0,0.0004119,4]
[394405672,1763535046655,-162.912725,0.00041642,2]
[394405673,1763535046664,-168.824681,0.00041642,2]
[394405674,1763535046673,-168.824681,0.00041642,2]
[394405675,1763535046683,-10833.0,0.000424,120]
[394405676,1763535046692,-2824.37,0.00042422,2]
[394405677,1763535046701,-2199.39,0.000428,30]
[394405678,1763535046710,-237.44183588,0.00043,30]
[394405679,1763535046719,-205.67436225,0.00043382,12]
[394405680,1763535046729,-1168.6,0.000434,14]
[394405681,1763535046739,-16170.57,0.000434,2]
[394405682,1763535046748,-1036.4910524,0.00043451,15]
[394405683,1763535046757,-2227.03792797,0.00043861,28]
[394405684,1763535046766,-242.96,0.00043877,14]
[394405685,1763535046776,-230.48373969,0.00044109,30]
[394405686,1763535046785,-605.22,0.00044506,30]
[394405687,1763535046794,-3295.1,0.00045073,2]
[394405688,1763535046803,-1000.0,0.00045159,90]
[394405689,1763535046813,-1000.0,0.00045159,90]
[394405690,1763535046822,-4483.0063492,0.00046,120]
[394405691,1763535046831,-395.8371224,0.00046069,30]
[394405692,1763535046841,-395.8371224,0.00046069,30]
[394405693,1763535046850,-791.5392362,0.00046069,30]
[394405694,1763535046859,-395.8371224,0.00046069,30]
[394405695,1763535046869,-395.8371224,0.00046069,30]
[394405696,1763535046882,-634.3474986,0.00046069,30]
[394405697,1763535046892,-327.00596455,0.0004623,2]
[394405698,1763535046901,-735.4,0.000463,14]
[394405699,1763535046911,-395.7021138,0.00047186,30]
[394405700,1763535046921,-3765.83,0.00047725,2]
[394405701,1763535046930,-806.96,0.0004793,30]
[394405702,1763535046939,-276.77489167,0.00047957,2]
[394405703,1763535046950,-194.0,0.00048,90]
[394405704,1763535046960,-1154.5091473,0.00048104,2]
[394405705,1763535046970,-461.61,0.000489,30]
[394405706,1763535046979,-5000.0,0.00049,120]
[394405707,1763535046988,-230.5177075,0.00049019,2]
[394405708,1763535046997,-1168.6,0.000491,14]
[394405709,1763535047006,-2251.83879319,0.00049229,2]
[394405710,1763535047015,-150.0,0.00049439,7]
[394405711,1763535047024,-160.0,0.0004944,3]
[394405712,1763535047034,-160.0,0.0004944,5]
[394405713,1763535047043,-150.0,0.00049454,7]
[394405714,1763535047056,-500.0,0.00049499,7]
[394405715,1763535047065,-500.0,0.00049499,7]
[394405716,1763535047075,-500.0,0.00049499,7]
[394405717,1763535047084,-500.0,0.00049499,7]
[394405718,1763535047094,-500.0,0.00049499,7]
[394405719,1763535047103,-349.0,0.00049499,7]
[394405720,1763535047111,-151.0,0.00049499,7]
[394405721,1763535047120,-277.21465388,0.00049499,7]
[394405722,1763535047130,-151.0,0.00049499,7]
[394405723,1763535047139,-151.0,0.00049499,7]
[394405724,1763535047148,-150.0,0.00049499,7]
[394405725,1763535047159,-250.0,0.00049499,7]
[394405726,1763535047168,-250.0,0.00049499,7]
[394405727,1763535047177,-250.0,0.00049499,7]
[394405728,1763535047186,-250.0,0.00049499,7]
[394405729,1763535047195,-250.0,0.00049499,7]
[394405730,1763535047204,-250.0,0.00049499,7]
[394405731,1763535047213,-250.0,0.00049499,7]
[394405732,1763535047222,-250.0,0.00049499,7]
[394405733,1763535047231,-250.0,0.00049499,7]
[394405734,1763535047240,-267.67817321,0.00049499,7]
[394405735,1763535047249,-197.32855185,0.00049499,7]
[394405736,1763535047260,-553.64373807,0.00049499,7]
[394405737,1763535047270,-16989.35169936,0.00049499,7]
[394405738,1763535047279,-201.93286099,0.00049499,7]
[394405739,1763535047288,-209.40437684,0.00049499,7]
[394405740,1763535047298,-217.15233878,0.00049499,7]
[394405741,1763535047308,-225.18697532,0.00049499,7]
[394405742,1763535047406,-233.51889341,0.00049499,7]
[394405743,1763535047416,-242.15909246,0.00049499,7]
[394405744,1763535047426,-251.11897888,0.00049499,7]
[394405745,1763535047435,-313.30360752,0.00049499,7]
[394405746,1763535047446,-6686.51857567,0.00049499,7]
[394405747,1763535047455,-6933.91976297,0.00049499,7]
[394405748,1763535047465,-250.0,0.00049499,7]
[394405749,1763535047474,-7190.4747942,0.00049499,7]
[394405750,1763535047484,-250.0,0.00049499,7]
[394405751,1763535047493,-250.0,0.00049499,7]
[394405752,1763535047502,-7456.52236159,0.00049499,7]
[394405753,1763535047511,-7732.41368897,0.00049499,7]
[394405754,1763535047521,-250.0,0.00049499,7]
[394405755,1763535047530,-8018.51299546,0.00049499,7]
[394405756,1763535047539,-250.0,0.00049499,7]
[394405757,1763535047549,-8315.19797629,0.00049499,7]
[394405758,1763535047558,-250.0,0.00049499,7]
[394405759,1763535047569,-8622.86030142,0.00049499,7]
[394405760,1763535047578,-250.0,0.00049499,7]
[394405761,1763535047588,-250.0,0.00049499,7]
[394405762,1763535047598,-1781.73721298,0.00049499,7]
[394405763,1763535047608,-250.0,0.00049499,7]
[394405764,1763535047618,-250.0,0.00049499,7]
[394405765,1763535047628,-250.0,0.00049499,7]
[394405766,1763535047637,-250.0,0.00049499,7]
[394405767,1763535047647,-440844.06212653,0.000495,7]
[394405768,1763535047656,-333.0,0.000495,30]
[394405769,1763535047665,-281.57120085,0.000495,30]
[394405770,1763535047674,-1000.0,0.00049589,120]
[394405771,1763535047683,-175.080426,0.000496,2]
[394405772,1763535047692,-162.912725,0.000496,2]
[394405773,1763535047702,-168.824681,0.000496,2]
[394405774,1763535047712,-168.824681,0.000496,2]
[394405775,1763535047721,-1000.0,0.00049675,90]
[394405776,1763535047731,-1000.0,0.00049675,90]
[394405777,1763535047740,-579.0,0.00049675,90]
[394405778,1763535047749,-4266.71854325,0.000497,7]
[394405779,1763535047759,-16170.57,0.000497,2]
[394405780,1763535047768,-1000.0,0.000498,120]
[394405781,1763535047777,-1000.0,0.00049863,120]
[394405782,1763535047787,-1002.40444543,0.00049863,120]
[394405783,1763535047797,-2199.39,0.000499,30]
[394405784,1763535047806,-4266.71,0.0005,7]
[394405785,1763535047815,-50096.22390544,0.0005,120]
[394405786,1763535047825,-300.0,0.0005,120]
[394405787,1763535047844,-1145.5059235,0.0005,120]
[394405788,1763535047855,-1028.37082684,0.0005,120]
[394405789,1763535047865,-502.77101558,0.0005,30]
[394405790,1763535047879,-151.0,0.000501,30]
[394405791,1763535047888,-1046.96349946,0.00050136,120]
[394405792,1763535047898,-151.0,0.000503,28]
[394405793,1763535047907,-4236.55,0.00050376,2]
[394405794,1763535047918,-194.0,0.00050486,120]
[394405795,1763535047927,-151.0,0.000505,30]
[394405796,1763535047937,-151.0,0.000507,29]
[394405797,1763535047948,-151.0,0.000509,29]
[394405798,1763535047958,-4300.0,0.00051,7]
[394405799,1763535047967,-4581.141732,0.00051,85]
[394405800,1763535047977,-735.4,0.00051,14]
[394405801,1763535047986,-151.0,0.000511,24]
[394405802,1763535047995,-151.0,0.000513,24]
[394405803,1763535048005,-1008.7,0.00051353,30]
[394405804,1763535048014,-202.0,0.0005138,85]
[394405805,1763535048024,-1168.6,0.000514,14]
[394405806,1763535048033,-463828.9294,0.0005144,30]
[394405807,1763535048043,-2227.03792797,0.00051482,28]
[394405808,1763535048053,-231.646,0.00051682,93]
[394405809,1763535048063,-162.912725,0.0005178,60]
[394405810,1763535048073,-300.0,0.00051945,50]
[394405811,1763535048082,-1000.0,0.00052,120]
[394405812,1763535048092,-17358.981418,0.000522,120]
[394405813,1763535048102,-162.912725,0.00052534,60]
[394405814,1763535048111,-1132.720159,0.00052632,2]
[394405815,1763535048120,-619.2226456,0.00052643,120]
[394405816,1763535048131,-16170.57,0.000529,2]
[394405817,1763535048139,-4878.0,0.00053,7]
[394405818,1763535048148,-166.92151752,0.00053,120]
[394405819,1763535048157,-4707.28,0.00053028,2]
[394405820,1763535048167,-162.912725,0.00053287,60]
[394405821,1763535048176,-2199.39,0.000533,30]
[394405822,1763535048187,-397567.6538,0.0005344,30]
[394405823,1763535048197,-151.0,0.0005344,120]
[394405824,1763535048206,-151.0,0.0005344,120]
[394405825,1763535048216,-151.0,0.0005344,120]
[394405826,1763535048226,-151.0,0.0005344,120]
[394405827,1763535048235,-151.0,0.0005344,120]
[394405828,1763535048245,-262.089121,0.0005344,120]
[394405829,1763535048255,-151.0,0.0005344,120]
[394405830,1763535048263,-160.070895,0.0005344,120]
[394405831,1763535048272,-231.129182,0.0005344,120]
[394405832,1763535048282,-160.070895,0.0005344,120]
[394405833,1763535048291,-231.129182,0.0005344,120]
[394405834,1763535048301,-160.070895,0.0005344,120]
[394405835,1763535048309,-259.977634,0.0005344,7]
[394405836,1763535048323,-231.129182,0.0005344,120]
[394405837,1763535048332,-244.943787,0.0005344,120]
[394405838,1763535048341,-160.070895,0.0005344,120]
[394405839,1763535048350,-259.977634,0.0005344,7]
[394405840,1763535048359,-244.943787,0.0005344,120]
[394405841,1763535048368,-231.129182,0.0005344,120]
[394405842,1763535048378,-151.0,0.0005344,30]
[394405843,1763535048387,-244.943787,0.0005344,120]
[394405844,1763535048396,-259.977634,0.0005344,7]
[394405845,1763535048405,-244.943787,0.0005344,120]
[394405846,1763535048415,-259.977634,0.0005344,7]
[394405847,1763535048424,-151.0,0.0005344,120]
[394405848,1763535048433,-151.0,0.0005344,120]
[394405849,1763535048443,-151.0,0.0005344,120]
[394405850,1763535048452,-151.0,0.0005344,120]
[394405851,1763535048461,-151.0,0.0005344,120]
[394405852,1763535048471,-151.0,0.0005344,120]
[394405853,1763535048481,-151.0,0.0005344,120]
[394405854,1763535048491,-151.0,0.0005344,120]
[394405855,1763535048501,-151.0,0.0005344,120]
[394405856,1763535048510,-151.0,0.0005344,120]
[394405857,1763535048520,-151.0,0.0005344,120]
[394405858,1763535048529,-151.0,0.0005344,120]
[394405859,1763535048538,-151.0,0.0005344,120]
[394405860,1763535048548,-151.0,0.0005344,120]
[394405861,1763535048556,-151.0,0.0005344,120]
[394405862,1763535048568,-151.0,0.0005344,120]
[394405863,1763535048577,-151.0,0.0005344,120]
[394405864,1763535048586,-151.0,0.0005344,120]
[394405865,1763535048595,-151.0,0.0005344,120]
[394405866,1763535048605,-151.0,0.0005344,120]
[394405867,1763535048614,-152.695074,0.0005344,60]
[394405868,1763535048623,-164.0,0.000537,120]
[394405869,1763535048633,-50000.0,0.000539,30]
[394405870,1763535048642,-10000.0,0.00054,120]
[394405871,1763535048651,-1000.0,0.00054,120]
[394405872,1763535048661,-300.0,0.00054,120]
[394405873,1763535048669,-162.912725,0.0005404,60]
[394405874,1763535048678,-168.824681,0.0005404,60]
[394405875,1763535048687,-168.824681,0.0005404,60]
[394405876,1763535048696,-135341.1935026,0.00054395,120]
[394405877,1763535048705,-151.0,0.00054395,60]
[394405878,1763535048714,-151.0,0.00054395,120]
[394405879,1763535048723,-151.0,0.00054395,120]
[394405880,1763535048733,-151.0,0.00054395,120]
[394405881,1763535048742,-151.0,0.00054395,120]
[394405882,1763535048751,-151.0,0.00054395,120]
[394405883,1763535048760,-151.0,0.00054395,120]
[394405884,1763535048769,-175.331614,0.00054395,7]
[394405885,1763535048778,-151.0,0.00054395,120]
[394405886,1763535048787,-151.0,0.00054395,120]
[394405887,1763535048796,-151.0,0.00054395,120]
[394405888,1763535048805,-171.445903,0.00054395,120]
[394405889,1763535048815,-171.445903,0.00054395,120]
[394405890,1763535048824,-171.445903,0.00054395,120]
[394405891,1763535048833,-171.445903,0.00054395,120]
[394405892,1763535048841,-151.0,0.00054395,90]
[394405893,1763535048851,-151.0,0.00054395,120]
[394405894,1763535048860,-151.0,0.00054395,120]
[394405895,1763535048872,-179.96441,0.00054395,120]
[394405896,1763535048882,-152.170559,0.00054395,120]
[394405897,1763535048891,-1168.6,0.000544,14]
[394405898,1763535048900,-1198.36272114,0.00054498,72]
[394405899,1763535048911,-1000.0,0.00054643,120]
[394405900,1763535048920,-1000.0,0.00054643,120]
[394405901,1763535048931,-1000.0,0.00054643,120]
[394405902,1763535048939,-300.0,0.00054685,90]
[394405903,1763535048952,-2000.0,0.000547,60]
[394405904,1763535048960,-1282.7879414,0.00054703,2]
[394405905,1763535048970,-1210.44,0.00054777,30]
[394405906,1763535048979,-400.0,0.00054794,120]
[394405907,1763535048988,-175.080426,0.00054794,60]
[394405908,1763535048997,-162.912725,0.00054794,60]
[394405909,1763535049007,-168.824681,0.00054794,60]
[394405910,1763535049017,-617.14,0.00054794,120]
[394405911,1763535049026,-617.14,0.00054794,120]
[394405912,1763535049036,-617.14,0.00054794,120]
[394405913,1763535049045,-617.14,0.00054794,120]
[394405914,1763535049056,-617.14,0.00054794,120]
[394405915,1763535049066,-617.14,0.00054794,120]
[394405916,1763535049075,-617.14,0.00054794,120]
[394405917,1763535049085,-617.14,0.00054794,120]
[394405918,1763535049094,-617.14,0.00054794,120]
[394405919,1763535049104,-617.14,0.00054794,120]
[394405920,1763535049114,-617.14,0.00054794,120]
[394405921,1763535049124,-617.14,0.00054794,120]
[394405922,1763535049135,-617.14,0.00054794,120]
[394405923,1763535049144,-617.14,0.00054794,120]
[394405924,1763535049156,-617.14,0.00054794,120]
[394405925,1763535049165,-617.14,0.00054794,120]
[394405926,1763535049175,-168.824681,0.00054794,60]
[394405927,1763535049184,-617.14,0.00054794,120]
[394405928,1763535049193,-617.14,0.00054794,120]
[394405929,1763535049203,-617.14,0.00054794,120]
[394405930,1763535049212,-617.14,0.00054794,120]
[394405931,1763535049220,-617.14,0.00054794,120]
[394405932,1763535049229,-617.14,0.00054794,120]
[394405933,1763535049238,-617.14,0.00054794,120]
[394405934,1763535049246,-617.22474616,0.00054794,120]
[394405935,1763535049256,-605.94214868,0.00054794,120]
[394405936,1763535049265,-150.0,0.00054794,2]
[394405937,1763535049274,-300.0,0.00054794,2]
[394405938,1763535049283,-450.0,0.00054794,2]
[394405939,1763535049292,-600.0,0.00054794,2]
[394405940,1763535049301,-750.0,0.00054794,2]
[394405941,1763535049311,-819.48629231,0.00054794,2]
[394405942,1763535049322,-170.67,0.00054795,120]
[394405943,1763535049331,-199.12088332,0.00054795,120]
[394405944,1763535049342,-199.12,0.00054795,120]
[394405945,1763535049351,-220.27,0.00054795,120]
[394405946,1763535049359,-153.0,0.00054795,120]
[394405947,1763535049368,-153.0,0.00054795,120]
[394405948,1763535049377,-153.0,0.00054795,120]
[394405949,1763535049385,-153.0,0.00054795,120]
[394405950,1763535049394,-153.0,0.00054795,120]
[394405951,1763535049403,-153.0,0.00054795,120]
[394405952,1763535049411,-153.0,0.00054795,120]
[394405953,1763535049420,-153.0,0.00054795,120]
[394405954,1763535049429,-153.0,0.00054795,120]
[394405955,1763535049439,-250.0,0.00054999,30]
[394405956,1763535049449,-250.0,0.00054999,120]
[394405957,1763535049458,-250.0,0.00054999,30]
[394405958,1763535049467,-250.0,0.00054999,120]
[394405959,1763535049476,-514.84070869,0.00054999,30]
[394405960,1763535049485,-533.88981491,0.00054999,120]
[394405961,1763535049495,-24871.53182089,0.00054999,30]
[394405962,1763535049504,-25791.77849826,0.00054999,120]
[394405963,1763535049513,-187.78006525,0.00054999,30]
[394405964,1763535049523,-194.72792766,0.00054999,120]
[394405965,1763535049532,-6217.88295522,0.00054999,30]
[394405966,1763535049541,-6447.94462457,0.00054999,120]
[394405967,1763535049550,-250.0,0.00054999,30]
[394405968,1763535049560,-250.0,0.00054999,120]
[394405969,1763535049570,-33260.15815915,0.00055,120]
[394405970,1763535049579,-1998.28884961,0.00055,120]
[394405971,1763535049588,-10000.0,0.00055,120]
[394405972,1763535049597,-10000.0,0.00055,30]
[394405973,1763535049606,-220.41758666,0.00055,120]
[394405974,1763535049615,-239.98891953,0.00055,120]
[394405975,1763535049624,-2055.0,0.000557,63]
[394405976,1763535049633,-250.0,0.00055982,90]
[394405977,1763535049642,-250.0,0.00055982,90]
[394405978,1763535049651,-496.47127164,0.00055982,90]
[394405979,1763535049660,-23984.11940298,0.00055982,90]
[394405980,1763535049669,-181.08010149,0.00055982,90]
[394405981,1763535049679,-5996.02985074,0.00055982,90]
[394405982,1763535049688,-250.0,0.00055982,90]
[394405983,1763535049697,-250.0,0.00055999,120]
[394405984,1763535049706,-250.0,0.00055999,120]
[394405985,1763535049716,-478.75725327,0.00055999,120]
[394405986,1763535049725,-23128.36972322,0.00055999,120]
[394405987,1763535049734,-174.61919141,0.00055999,120]
[394405988,1763535049743,-5782.09243081,0.00055999,120]
[394405989,1763535049752,-250.0,0.00055999,120]
[394405990,1763535049761,-10000.0,0.00056,120]
[394405991,1763535049771,-250.0,0.00056399,68]
[394405992,1763535049780,-250.0,0.00056399,68]
[394405993,1763535049790,-461.67526834,0.00056399,68]
[394405994,1763535049799,-22303.15306,0.00056399,68]
[394405995,1763535049905,-168.3888056,0.00056399,68]
[394405996,1763535049916,-312.79016114,0.00056399,68]
[394405997,1763535049926,-5575.788265,0.00056399,68]
[394405998,1763535049936,-230.5177075,0.00056438,2]
[394405999,1763535049947,-331306.3781,0.0005644,120]
[394406000,1763535049958,-151.0,0.0005644,120]
[394406001,1763535049967,-151.0,0.0005644,120]
[394406002,1763535049975,-151.0,0.0005644,120]
[394406003,1763535049984,-151.0,0.0005644,120]
[394406004,1763535049993,-151.0,0.0005644,120]
[394406005,1763535050002,-151.0,0.0005644,120]
[394406006,1763535050010,-151.0,0.0005644,120]
[394406007,1763535050020,-151.0,0.0005644,120]
[394406008,1763535050029,-151.0,0.0005644,120]
[394406009,1763535050038,-151.0,0.0005644,120]
[394406010,1763535050047,-151.0,0.0005644,120]
[394406011,1763535050057,-151.0,0.0005644,120]
[394406012,1763535050066,-151.0,0.0005644,7]
[394406013,1763535050075,-151.0,0.0005644,120]
[394406014,1763535050085,-151.0,0.0005644,120]
[394406015,1763535050094,-151.0,0.0005644,120]
[394406016,1763535050103,-151.0,0.0005644,120]
[394406017,1763535050111,-151.0,0.0005644,120]
[394406018,1763535050120,-151.0,0.0005644,120]
[394406019,1763535050129,-151.0,0.0005644,120]
[394406020,1763535050138,-151.0,0.0005644,120]
[394406021,1763535050149,-151.0,0.0005644,120]
[394406022,1763535050158,-151.0,0.0005644,120]
[394406023,1763535050167,-151.0,0.0005644,120]
[394406024,1763535050176,-151.0,0.0005644,120]
[394406025,1763535050184,-151.0,0.0005644,120]
[394406026,1763535050194,-151.0,0.0005644,120]
[394406027,1763535050204,-151.0,0.0005644,120]
[394406028,1763535050213,-153.270878,0.0005644,120]
[394406029,1763535050222,-151.0,0.0005644,120]
[394406030,1763535050232,-151.0,0.0005644,120]
[394406031,1763535050241,-151.0,0.0005644,120]
[394406032,1763535050250,-151.0,0.0005644,120]
[394406033,1763535050264,-151.0,0.0005644,120]
[394406034,1763535050274,-151.0,0.0005644,120]
[394406035,1763535050283,-151.0,0.0005644,120]
[394406036,1763535050292,-321.445569,0.0005644,120]
[394406037,1763535050301,-321.445569,0.0005644,120]
[394406038,1763535050312,-321.445569,0.0005644,120]
[394406039,1763535050322,-321.445569,0.0005644,120]
[394406040,1763535050331,-632.754251,0.0005644,120]
[394406041,1763535050339,-632.754251,0.0005644,120]
[394406042,1763535050348,-632.754251,0.0005644,120]
[394406043,1763535050357,-151.0,0.0005644,120]
[394406044,1763535050367,-151.0,0.0005644,120]
[394406045,1763535050376,-189.187773,0.0005644,120]
[394406046,1763535050385,-632.754251,0.0005644,120]
[394406047,1763535050394,-151.0,0.0005644,120]
[394406048,1763535050402,-189.187773,0.0005644,120]
[394406049,1763535050411,-151.0,0.0005644,120]
[394406050,1763535050420,-151.0,0.0005644,120]
[394406051,1763535050431,-189.187773,0.0005644,120]
[394406052,1763535050440,-151.0,0.0005644,120]
[394406053,1763535050448,-189.187773,0.0005644,120]
[394406054,1763535050459,-151.0,0.0005644,120]
[394406055,1763535050467,-151.0,0.0005644,120]
[394406056,1763535050476,-151.0,0.0005644,120]
[394406057,1763535050485,-180.933679,0.0005644,120]
[394406058,1763535050495,-151.0,0.0005644,120]
[394406059,1763535050504,-151.0,0.0005644,120]
[394406060,1763535050513,-151.0,0.0005644,120]
[394406061,1763535050523,-151.0,0.0005644,120]
[394406062,1763535050532,-151.0,0.0005644,120]
[394406063,1763535050541,-151.0,0.0005644,120]
[394406064,1763535050551,-151.0,0.0005644,120]
[394406065,1763535050561,-151.0,0.0005644,120]
[394406066,1763535050571,-151.0,0.0005644,120]
[394406067,1763535050580,-151.0,0.0005644,120]
[394406068,1763535050589,-151.0,0.0005644,120]
[394406069,1763535050599,-151.0,0.0005644,120]
[394406070,1763535050608,-229.0541,0.0005644,120]
[394406071,1763535050618,-151.0,0.0005644,2]
[394406072,1763535050628,-151.0,0.0005644,2]
[394406073,1763535050637,-151.0,0.0005644,30]
[394406074,1763535050648,-151.0,0.0005644,15]
[394406075,1763535050658,-151.0,0.0005644,15]
[394406076,1763535050667,-151.0,0.0005644,15]
[394406077,1763535050678,-151.0,0.0005644,15]
[394406078,1763535050687,-151.0,0.0005644,120]
[394406079,1763535050696,-151.0,0.0005644,120]
[394406080,1763535050705,-151.0,0.0005644,120]
[394406081,1763535050714,-2573.66866829,0.00056731,120]
[394406082,1763535050724,-453.63210467,0.0005684,120]
[394406083,1763535050734,-374.44488232,0.0005684,30]
[394406084,1763535050744,-341.71854664,0.0005684,30]
[394406085,1763535050753,-10000.0,0.00057,120]
[394406086,1763535050763,-200.0,0.00057155,120]
[394406087,1763535050772,-200.0,0.00057155,120]
[394406088,1763535050781,-25231.0,0.00057414,120]
[394406089,1763535050791,-381.91916235,0.0005796,120]
[394406090,1763535050800,-504.57839113,0.0005796,45]
[394406091,1763535050810,-250.0,0.00057989,30]
[394406092,1763535050820,-250.0,0.00057989,30]
[394406093,1763535050829,-445.202766,0.00057989,30]
[394406094,1763535050843,-21507.38,0.00057989,30]
[394406095,1763535050852,-461.29210038,0.00057989,30]
[394406096,1763535050861,-162.380719,0.00057989,30]
[394406097,1763535050872,-250.0,0.00057989,30]
[394406098,1763535050882,-305.61749438,0.00057989,30]
[394406099,1763535050892,-250.0,0.00057989,30]
[394406100,1763535050901,-5376.845,0.00057989,30]
[394406101,1763535050911,-255.11630723,0.00057989,30]
[394406102,1763535050920,-250.0,0.00057999,30]
[394406103,1763535050930,-250.0,0.00057999,30]
[394406104,1763535050939,-250.0,0.00057999,120]
[394406105,1763535050950,-250.0,0.00057999,120]
[394406106,1763535050960,-153.99367955,0.00057999,30]
[394406107,1763535050969,-193.36693236,0.00057999,30]
[394406108,1763535050978,-414.0,0.00057999,30]
[394406109,1763535050989,-429.318,0.00057999,120]
[394406110,1763535051003,-257.3263277,0.00057999,30]
[394406111,1763535051016,-20000.0,0.00057999,30]
[394406112,1763535051028,-20740.0,0.00057999,120]
[394406113,1763535051039,-500.0,0.00057999,30]
[394406114,1763535051049,-1888.0,0.00057999,30]
[394406115,1763535051061,-151.0,0.00057999,30]
[394406116,1763535051073,-536.17153887,0.00057999,120]
[394406117,1763535051085,-250.0,0.00057999,30]
[394406118,1763535051096,-156.587,0.00057999,120]
[394406119,1763535051107,-250.0,0.00057999,120]
[394406120,1763535051119,-151.0,0.00057999,30]
[394406121,1763535051130,-156.587,0.00057999,120]
[394406122,1763535051142,-250.0,0.00057999,30]
[394406123,1763535051153,-250.0,0.00057999,120]
[394406124,1763535051164,-5000.0,0.00057999,30]
[394406125,1763535051177,-236.13608682,0.00057999,30]
[394406126,1763535051188,-5185.0,0.00057999,120]
[394406127,1763535051200,-278.56358956,0.00057999,30]
[394406128,1763535051211,-151.0,0.00057999,30]
[394406129,1763535051222,-151.0,0.00057999,120]
[394406130,1763535051234,-1668.1134576,0.00058,120]
[394406131,1763535051245,-1773.17087986,0.00058,120]
[394406132,1763535051255,-836960.52450979,0.00058,7]
[394406133,1763535051271,-228935.28137892,0.00058,7]
[394406134,1763535051283,-410.53684577,0.00058,120]
[394406135,1763535051294,-98997.0,0.00058,90]
[394406136,1763535051306,-151.0,0.00058,120]
[394406137,1763535051317,-157.502932,0.00058,120]
[394406138,1763535051327,-151.0,0.00058,120]
[394406139,1763535051338,-151.0,0.00058,120]
[394406140,1763535051350,-151.0,0.00058,120]
[394406141,1763535051361,-151.0,0.00058,120]
[394406142,1763535051372,-151.0,0.00058,120]
[394406143,1763535051383,-151.0,0.00058,120]
[394406144,1763535051395,-151.0,0.00058,120]
[394406145,1763535051408,-152.832044,0.00058,120]
[394406146,1763535051420,-151.0,0.00058,120]
[394406147,1763535051432,-151.0,0.00058,120]
[394406148,1763535051446,-163.786282,0.00058,120]
[394406149,1763535051459,-151.0,0.00058,120]
[394406150,1763535051472,-261.651579,0.00058,120]
[394406151,1763535051485,-151.0,0.00058,120]
[394406152,1763535051496,-151.0,0.00058,120]
[394406153,1763535051507,-151.0,0.00058,120]
[394406154,1763535051517,-151.0,0.00058,120]
[394406155,1763535051528,-151.0,0.00058,120]
[394406156,1763535051540,-151.0,0.00058,120]
[394406157,1763535051552,-151.0,0.00058,120]
[394406158,1763535051565,-151.0,0.00058,120]
[394406159,1763535051579,-286.450871,0.00058,120]
[394406160,1763535051590,-151.0,0.00058,120]
[394406161,1763535051600,-151.0,0.00058,120]
[394406162,1763535051611,-151.0,0.00058,120]